Workbook

Sheet Rebate Analysis
A1: WM Skagit County | G1: WM Skagit County | M1: WM Skagit County
A2: 2015 - 2016 Rebate Calculation | G2: 2014 - 2015 Rebate Calculation | M2: 2013 - 2014 Rebate Calculation
M3: TG-130782
A5: Residential | G5: Residential | M5: Residential
D7: Commodity | E7: Total | J7: Commodity | K7: Total | P7: Commodity | Q7: Total
C8: Customers | D8: Credit | E8: Credits | I8: Customers | J8: Credit | K8: Credits | O8: Customers | P8: Credit | Q8: Credits
A9: Projected Revenue May 2014-Apr 2015 | G9: Projected Revenue May 2013-Apr 2014 | M9: Projected Revenue May 2012-Apr 2013
A10: May - June projected value without adjustment factor | C10: =+Customers!C20+Customers!D20 -> 16396 | D10: =+J11 -> 2.673572086 | E10: =C10*D10 -> 43835.88792 | G10: May - June projected value without adjustment factor | I10: 15970 | J10: =+P11 -> 3.29 | K10: =I10*J10 -> 52541.3 | M10: May - June projected value without adjustment factor | O10: 15009 | P10: 2.31 | Q10: =O10*P10 -> 34670.79
A11: July - April projected value without adjustment factor | C11: =SUM(Customers!E20:N20) -> 82912 | D11: =+L26 -> 2.37434864 | E11: =C11*D11 -> 196861.9945 | G11: July - April projected value without adjustment factor | I11: 81340 | J11: =+R26 -> 2.673572086 | K11: =I11*J11 -> 217468.3534 | M11: July - April projected value without adjustment factor | O11: 77740 | P11: 3.29 | Q11: =O11*P11 -> 255764.6
A12: Total | C12: =SUM(C10:C11) -> 99308 | E12: =SUM(E10:E11) -> 240697.8824 | G12: Total | I12: =SUM(I10:I11) -> 97310 | K12: =SUM(K10:K11) -> 270009.6534 | M12: Total | O12: =SUM(O10:O11) -> 92749 | Q12: =SUM(Q10:Q11) -> 290435.39
A14: Actual Commodity Revenue (adj. to reflect current customers) | E14: =+'Commodity Revenue'!Y40 -> 234149.9196 | G14: Actual Commodity Revenue (adj. to reflect current customers) | K14: 233294 | M14: Actual Commodity Revenue (adj. to reflect current customers) | Q14: 246068
A16: Owe Customer (company) | E16: =E14-E12 -> -6547.962812 | G16: Owe Customer (company) | K16: =K14-K12 -> -36715.65345 | M16: Owe Customer (company) | Q16: -34933
A18: Total Customers | E18: =+C12 -> 99308 | G18: Total Customers | K18: =+I12 -> 97310 | M18: Total Customers | Q18: =+O12 -> 92749
M20: Commodity Adjustment | R20: =ROUND(Q16/Q18,2) -> -0.38
A21: Adjust for Under/(Over) payment in 2014-2015 | F21: =+E63 -> -0.1427281724 | G21: Adjust for Under/(Over) payment in 2013-2014 | L21: =+K63 -> -0.6247056329 | M21: Adjust for Under/(Over) payment in 2012-2013 | R21: 0.2
A24: Projected Revenue May 2015-Apr 2016 | E24: =+E14 -> 234149.9196 | G24: Projected Revenue May 2014-Apr 2015 | K24: =+K14 -> 233294 | M24: Projected Revenue May 2013-Apr 2014 | Q24: =+Q11 -> 255764.6
A25: Total Customers | E25: =+Customers!N20*12 -> 100896 | G25: Total Customers | K25: 98256 | M25: Total Customers | Q25: 95664
A26: Projected Value | F26: =+E24/E25 -> 2.320705673 | G26: Projected Value | L26: =+K24/K25 -> 2.37434864 | M26: Projected Value | R26: =+Q24/Q25 -> 2.673572086
A29: Residential Commodity Adjustment | F29: =SUM(F20:F26) -> 2.1779775 | G29: Residential Commodity Adjustment | L29: =SUM(L20:L26) -> 1.749643007 | M29: Residential Commodity Adjustment | R29: =+R26+R20+R21 -> 2.493572086
C32: Customers | D32: Rebate | E32: Total | I32: Customers | J32: Rebate | K32: Total
A33: Actual Rebates paid: | G33: Actual Rebates paid:
A34: July , 2011- April, 2012 | C34: 72948 | D34: 2.31 | E34: =+D34*C34 -> 168509.88 | G34: July , 2011- April, 2012 | I34: 72948 | J34: 2.31 | K34: =+J34*I34 -> 168509.88
A35: May, 2012 - June, 2012 | C35: 15009 | D35: 2.31 | E35: =+D35*C35 -> 34670.79 | G35: May, 2012 - June, 2012 | I35: 15009 | J35: 2.31 | K35: =+J35*I35 -> 34670.79
A36: July , 2012- April, 2013 | C36: 77740 | D36: 4.15 | E36: 322621 | G36: July , 2012- April, 2013 | I36: 77740 | J36: 4.15 | K36: 322621
A37: May, 2013 - June, 2013 | C37: =+I37 -> 15970 | D37: =+D36 -> 4.15 | E37: 66275.5 | G37: May, 2013 - June, 2013 | I37: =+I10 -> 15970 | J37: =+J36 -> 4.15 | K37: 66275.5
A38: July , 2013- April, 2014 | C38: =+I38 -> 81340 | D38: 2.49 | E38: 202536.6 | G38: July , 2013- April, 2014 | I38: =+I11 -> 81340 | J38: 2.49 | K38: 202536.6
A39: May, 2014 - June, 2014 | C39: =+C10 -> 16396 | D39: =+D38 -> 2.49 | E39: 40826.04
A40: July , 2014- April, 2015 | C40: =+C11 -> 82912 | D40: =+L29 -> 1.749643007 | E40: 145066.401
E41: =SUM(E34:E40) -> 980506.211 | K41: =SUM(K34:K38) -> 794613.77
A43: Projected Rebate: | G43: Projected Rebate:
A44: May, 2015 - June, 2015 | C44: =+Customers!N20*2 -> 16816 | D44: =+D40 -> 1.749643007 | E44: =+D44*C44 -> 29421.99681 | G44: May, 2014 - June, 2014 | I44: 16376 | J44: =+J38 -> 2.49 | K44: =+J44*I44 -> 40776.24
A46: Total Actual and Projected Rebates | E46: =+E44+E41 -> 1009928.208 | G46: Total Actual and Projected Rebates | K46: =+K44+K41 -> 835390.01
A48: Actual Commodity Revenue: | G48: Actual Commodity Revenue:
A49: July , 2011- April, 2012 | C49: =+C34 -> 72948 | E49: =+K14 -> 233294 | G49: July , 2011- April, 2012 | I49: =+I34 -> 72948 | K49: =+Q14 -> 246068
A50: May, 2012 - April, 2013 | C50: =+C35+C36 -> 92749 | E50: =+K50 -> 255764.6 | G50: May, 2012 - April, 2013 | I50: =+I35+I36 -> 92749 | K50: =+Q11 -> 255764.6
A51: May, 2013 - April, 2014 | C51: =+C37+C38 -> 97310 | E51: =+K51 -> 233294 | G51: May, 2013 - April, 2014 | I51: =+I37+I38 -> 97310 | K51: =+K14 -> 233294
A52: May, 2014 - April, 2015 | C52: =+C39+C40 -> 99308 | E52: =+E14 -> 234149.9196
E53: =SUM(E49:E52) -> 956502.5196 | K53: =SUM(K49:K51) -> 735126.6
A55: Projected Commodity Revenue: | G55: Projected Commodity Revenue:
A56: May, 2015 - June, 2015 | C56: =+C44 -> 16816 | D56: =+F26 -> 2.320705673 | E56: =+D56*C56 -> 39024.98659 | G56: May, 2014 - June, 2014 | I56: =+I44 -> 16376 | J56: =+L26 -> 2.37434864 | K56: =+J56*I56 -> 38882.33333
E57: =+E56+E53 -> 995527.5062 | K57: =+K56+K53 -> 774008.9333
A59: Amount under (over) rebated | E59: =+E57-E46 -> -14400.70168 | G59: Amount under (over) rebated | K59: =+K57-K46 -> -61381.07667
A61: Projected Customers (April, 2015 customers x 12) | E61: =+E25 -> 100896 | G61: Projected Customers (April, 2014 customers x 12) | K61: =+K25 -> 98256
A63: Amount under (over) rebated per customer | E63: =+E59/E61 -> -0.1427281724 | G63: Amount under (over) rebated per customer | K63: =+K59/K61 -> -0.6247056329
A65: Projected Commodity Value per customer (next 12 months) | E65: =+D56 -> 2.320705673 | G65: Projected Commodity Value per customer (next 12 months) | K65: =+J56 -> 2.37434864
E67: =+E65+E63 -> 2.1779775 | K67: =+K65+K63 -> 1.749643007

Sheet CRC Prices
A1: Cascade Recycling Center
A2: Monthly Price per ton of Commodities Sold
B5: Passback Price/ton schedule
I6: Natural | J6: Colored | K6: Mixed
A7: Month | B7: ONP 6 | C7: Mixed Paper | D7: OCC | E7: Alum. | F7: Tin | G7: Glass | H7: PET | I7: HDPE | J7: HDPE | K7: Plastics 3-7
A8: 2014-05-10 | B8: 105.93 | C8: 95.93 | D8: 137.8 | E8: 1440 | F8: 230 | G8: -53.34 | H8: 330 | I8: 830 | J8: 560 | K8: 79.93
A9: 2014-06-10 | B9: 102.87 | C9: 92.87 | D9: 132.38 | E9: 1405.35 | F9: 186.81 | G9: -53.34 | H9: 342.41 | I9: 900 | J9: 580.05 | K9: 100
A10: 2014-07-10 | B10: 102.1 | C10: 94.1 | D10: 137.91 | E10: 1487.07 | F10: 177 | G10: -53.34 | H10: 357 | I10: 965.4 | J10: 620 | K10: 115
A11: 2014-08-10 | B11: 100 | C11: 91.84 | D11: 133.99 | E11: 1559.08 | F11: 198.12 | G11: -53.34 | H11: 351 | I11: 985.6 | J11: 668.48 | K11: 120.12
A12: 2014-09-10 | B12: 93.93 | C12: 85.93 | D12: 123.74 | E12: 1634.89 | F12: 229 | G12: -53.34 | H12: 362 | I12: 982.6 | J12: 667 | K12: 96.77
A13: 2014-10-10 | B13: 87.1 | C13: 78.1 | D13: 124.91 | E13: 1630.11 | F13: 203.84 | G13: -53.34 | H13: 347 | I13: 979 | J13: 657 | K13: 119.61
A14: 2014-11-10 | B14: 86.1 | C14: 76.1 | D14: 123.91 | E14: 1734.55 | F14: 198 | G14: -53.34 | H14: 322 | I14: 837 | J14: 657 | K14: 137
A15: 2014-12-10 | B15: 84.57 | C15: 73.57 | D15: 121.37 | E15: 1705.09 | F15: 192 | G15: -53.34 | H15: 251.66 | I15: 769.4 | J15: 597 | K15: 57
A16: 2015-01-10 | B16: 82.23 | C16: 71.18 | D16: 119.84 | E16: 1606.97 | F16: 148.14 | G16: -53.34 | H16: 232.7 | I16: 587 | J16: 417 | K16: 57
A17: 2015-02-10 | B17: 80.08 | C17: 68.33 | D17: 109.97 | E17: 1747 | F17: 79.14 | G17: -53.34 | H17: 160 | I17: 487 | J17: 320 | K17: 37
A18: 2015-03-10 | B18: 71.91 | C18: 56.33 | D18: 94.86 | E18: 1747 | F18: 147 | G18: -53.34 | H18: 167 | I18: 527 | J18: 477 | K18: 57
A19: 2015-04-10 | B19: 71.9 | C19: 56.83 | D19: 93.19 | E19: 1336.87 | F19: 79.14 | G19: -53.34 | H19: 203.54 | I19: 577.67 | J19: 607 | K19: 37
A20: Average | B20: =+'Commodity Revenue'!AA20 -> 89.17872017 | C20: =+'Commodity Revenue'!AB20 -> 78.58210413 | D20: =+'Commodity Revenue'!AC20 -> 121.4533079 | E20: =+'Commodity Revenue'!AD20 -> 1583.58367 | F20: =+'Commodity Revenue'!AE20 -> 172.7559345 | G20: =+'Commodity Revenue'!AF20 -> -53.34 | H20: =+'Commodity Revenue'!AG20 -> 286.2580464 | I20: =+'Commodity Revenue'!AH20 -> 787.2719059 | J20: =+'Commodity Revenue'!AI20 -> 568.9988809 | K20: =+'Commodity Revenue'!AJ20 -> 93.41028488

Sheet CRC Composition
A1: Cascade Recycling Center
A2: Tonnage Delivered and Processed
A5: Stream Composition-CRC | AC5: %
B6: 2014-05-05 | D6: 2014-06-05 | F6: 2014-07-05 | H6: 2014-08-05 | J6: 2014-09-05 | L6: 2014-10-05 | N6: 2014-11-05 | P6: 2014-12-05 | R6: 2015-01-05 | T6: 2015-02-05 | V6: 2015-03-05 | X6: 2015-04-15 | Z6: Total 2014 | AC6: Excluding
B7: Tons | D7: Tons | F7: Tons | H7: Tons | J7: Tons | L7: Tons | N7: Tons | P7: Tons | R7: Tons | T7: Tons | V7: Tons | X7: Tons | Z7: Tons | AC7: Residue
A8: Newspaper | B8: 3729.61 | C8: =B8/B$19 -> 0.2983721418 | D8: 4197.97 | E8: =D8/D$19 -> 0.3413819154 | F8: 3885.44 | G8: =F8/F$19 -> 0.3393136597 | H8: 3793.56 | I8: =H8/H$19 -> 0.345266147 | J8: 4188.09 | K8: =J8/J$19 -> 0.3535192899 | L8: 4074.4 | M8: =L8/L$19 -> 0.338127568 | N8: 3405.21 | O8: =N8/N$19 -> 0.3423216117 | P8: 4462.34 | Q8: =P8/P$19 -> 0.3442491551 | R8: 4181.91 | S8: =R8/R$19 -> 0.3537947033 | T8: 3240.08 | U8: =T8/T$19 -> 0.296216657 | V8: 4037.44 | W8: =V8/V$19 -> 0.3482085643 | X8: 3755.1 | Y8: =X8/X$19 -> 0.3371491677 | Z8: =+P8+N8+L8+J8+H8+F8+D8+B8+R8+T8+V8+X8 -> 46951.15 | AA8: =Z8/Z$19 -> 0.3364882424 | AC8: =+Z8/($Z$19-$Z$18) -> 0.3501447677
A9: Mix Paper | B9: 2251.87 | C9: 0.1801516177 | D9: 1877.42 | E9: 0.1526731338 | F9: 1267.74 | G9: 0.1107111419 | H9: 1303.56 | I9: 0.1186418927 | J9: 1475.42 | K9: 0.1245411227 | L9: 1477.68 | M9: 0.1226301651 | N9: 1349.83 | O9: 0.135696765 | P9: 2064.58 | Q9: 0.1592729197 | R9: 1604.39 | S9: 0.1357333572 | T9: 1556.84 | U9: 0.1423304179 | V9: 1636.18 | W9: 0.1411121623 | X9: 1444.97 | Y9: 0.1297356749 | Z9: =+P9+N9+L9+J9+H9+F9+D9+B9+R9+T9+V9+X9 -> 19310.48 | AA9: 0.1383938301 | AC9: =+Z9/($Z$19-$Z$18) -> 0.1440106054
A10: OCC | B10: 3126.58 | C10: 0.2501292014 | D10: 3002.03 | E10: 0.2441272214 | F10: 3230.64 | G10: 0.2821302817 | H10: 2989.78 | I10: 0.2721111096 | J10: 3221.98 | K10: 0.2719693421 | L10: 3168.7 | M10: 0.2629650561 | N10: 2521.95 | O10: 0.2535285602 | P10: 3204.36 | Q10: 0.2472017423 | R10: 2916.58 | S10: 0.2467462369 | T10: 2560.75 | U10: 0.2341105172 | V10: 2882.42 | W10: 0.2485939927 | X10: 3045.36 | Y10: 0.2734256316 | Z10: 35871.13 | AA10: 0.2570802523 | AC10: 0.2675139689
A11: Aluminum | B11: 97.5 | C11: 0.007800087361 | D11: 104.5 | E11: 0.008498014555 | F11: 96.5 | G11: 0.008427299911 | H11: 103.5 | I11: 0.009419923821 | J11: 111 | K11: 0.009369579255 | L11: 101.5 | M11: 0.008423313408 | N11: 81 | O11: 0.008142831293 | P11: 106.5 | Q11: 0.0082159887 | R11: 112.75 | S11: 0.009538787969 | T11: 95.51 | U11: 0.00873177604 | V11: 103.21 | W11: 0.008901334985 | X11: 96 | Y11: 0.00861929645 | Z11: 1209.47 | AA11: 0.008667997154 | AC11: 0.009019791681
A12: Glass | B12: 2236.3 | C12: 0.1789060037 | D12: 2092.4 | E12: 0.1701554608 | F12: 2059.58 | G12: 0.1798621591 | H12: 1914.5 | I12: 0.1742458373 | J12: 1868.57 | K12: 0.1577271595 | L12: 2227.56 | M12: 0.1848614386 | N12: 1763.69 | O12: 0.1773016064 | P12: 2080.4 | Q12: 0.1604933605 | R12: 2008.24 | S12: 0.1698995614 | T12: 2575.71 | U12: 0.2354781998 | V12: 1956.19 | W12: 0.1687113892 | X12: 1900.98 | Y12: 0.1706782309 | Z12: 24684.12 | AA12: 0.1769054891 | AC12: 0.1840852772
A13: PET | B13: 204.1 | C13: 0.01632818288 | D13: 209.3 | E13: 0.01702042532 | F13: 163.15 | G13: 0.01424781327 | H13: 148.56 | I13: 0.0135210037 | J13: 204.75 | K13: 0.01728307525 | L13: 174.85 | M13: 0.01451050591 | N13: 149.5 | O13: 0.01502905282 | P13: 183.6 | Q13: 0.01416390165 | R13: 160.63 | S13: 0.01358949456 | T13: 164.38 | U13: 0.01502805304 | V13: 181.88 | W13: 0.0156862204 | X13: 160.2 | Y13: 0.01438345095 | Z13: 2104.9 | AA13: 0.01508534086 | AC13: 0.01569758614
A14: HDPE Natl | B14: 49.8 | C14: 0.003984044621 | D14: 49.1 | E14: 0.00399284703 | F14: 45.7 | G14: 0.003990959647 | H14: 47.3 | I14: 0.004304950693 | J14: 52.5 | K14: 0.004431557756 | L14: 60.4 | M14: 0.00501249389 | N14: 45.9 | O14: 0.004614271066 | P14: 58 | Q14: 0.00447443516 | R14: 57.3 | S14: 0.004847650116 | T14: 49.7 | U14: 0.004543705049 | V14: 55.8 | W14: 0.004812464801 | X14: 47.6 | Y14: 0.00427373449 | Z14: 619.1 | AA14: 0.004436949274 | AC14: 0.004617024837
A15: HDPE Col | B15: 72.19 | C15: 0.005775264683 | D15: 67.68 | E15: 0.005503785886 | F15: 53.39 | G15: 0.004662523754 | H15: 51.14 | I15: 0.004654443519 | J15: 56.4 | K15: 0.004760759189 | L15: 56.4 | M15: 0.004680540652 | N15: 42.86 | O15: 0.00430866357 | P15: 48.58 | Q15: 0.003747725174 | R15: 45.68 | S15: 0.003864583897 | T15: 42 | U15: 0.003839750745 | V15: 55.1 | W15: 0.004752093379 | X15: 46.2 | Y15: 0.004148036417 | Z15: 637.62 | AA15: 0.004569677913 | AC15: 0.004755140327
A16: #3 - 7 | B16: 74.48 | C16: 0.005958466735 | D16: 61.18 | E16: 0.004975201248 | F16: 50.63 | G16: 0.004421494243 | H16: 46.13 | I16: 0.004198464598 | J16: 53.33 | K16: 0.004501618574 | L16: 45.5 | M16: 0.003775968079 | N16: 34.43 | O16: 0.003461205943 | P16: 48.1 | Q16: 0.003710695366 | R16: =51.98+7.8 -> 59.78 | S16: 0.005057461151 | T16: =40.95+2.9 -> 43.85 | U16: 0.004008882623 | V16: =46.54+0.9 -> 47.44 | W16: 0.00409145753 | X16: =43.75+0.8 -> 44.55 | Y16: 0.003999892259 | Z16: 609.4 | AA16: 0.004367431574 | AC16: 0.004544685731
A17: Tin Cans | B17: 177 | C17: 0.01416015859 | D17: 170 | E17: 0.01382452129 | F17: 145.25 | G17: 0.01268461463 | H17: 147.33 | I17: 0.01340905678 | J17: 162.89 | K17: 0.01374964653 | L17: 175 | M17: 0.01452295415 | N17: 168.08 | O17: 0.01689687758 | P17: 222.03 | Q17: 0.01712860067 | R17: 197.83 | S17: 0.01673666008 | T17: 175 | U17: 0.01599896144 | V17: 191.9 | W17: =V17/V$19 -> 0.01655039418 | X17: 161 | Y17: 0.01445527842 | Z17: 2093.31 | AA17: 0.01500227796 | AC17: 0.01561115209
A18: Residue | B18: 480.43 | C18: 0.03843483047 | D18: 465.41 | E18: 0.03784747324 | F18: 452.86 | G18: 0.0395480522 | H18: 441.99 | I18: 0.04022717034 | J18: 451.92 | K18: 0.03814684916 | L18: 487.9 | M18: 0.04048999617 | N18: 384.95 | O18: 0.0386985544 | P18: 484.04 | Q18: 0.03734147578 | R18: 475.07 | S18: 0.04019150333 | T18: 434.39 | U18: 0.0397130792 | V18: 447.33 | W18: =V18/V$19 -> 0.03857992616 | X18: 435.84 | Y18: 0.03913160588 | Z18: 5442.13 | AA18: 0.03900251131
B19: =SUM(B8:B18) -> 12499.86 | C19: 1 | D19: 12296.99 | E19: 1 | F19: 11450.88 | G19: 1 | H19: 10987.35 | I19: 1 | J19: 11846.85 | K19: 1 | L19: 12049.89 | M19: 1 | N19: 9947.4 | O19: 1 | P19: 12962.53 | Q19: 1 | R19: 11820.16 | S19: 1 | T19: 10938.21 | U19: 1 | V19: 11594.89 | W19: 1 | X19: 11137.8 | Y19: 1 | Z19: 139532.81 | AA19: 1 | AC19: =SUM(AC8:AC18) -> 1

Sheet Customers
A1: Waste Management of Skagit County
A2: Recycling Customers by Jurisdiction
C5: 2014-05-01 | D5: 2014-06-01 | E5: 2014-07-01 | F5: 2014-08-01 | G5: 2014-09-01 | H5: 2014-10-01 | I5: 2014-11-01 | J5: 2014-12-01 | K5: 2015-01-01 | L5: 2015-02-01 | M5: 2015-03-01 | N5: 2015-04-01 | O5: Total | P5: Average
A6: Contract Cities:
B7: Burlington | C7: 2043 | D7: 2041 | E7: 2053 | F7: 2053 | G7: 2047 | H7: 2045 | I7: 2058 | J7: 2057 | K7: 2052 | L7: 2062 | M7: 2071 | N7: 2089 | O7: =SUM(C7:N7) -> 24671 | P7: =AVERAGE(C7:N7) -> 2055.916667
B8: Darrington | C8: 498 | D8: 497 | E8: 499 | F8: 498 | G8: 502 | H8: 503 | I8: 505 | J8: 504 | K8: 505 | L8: 507 | M8: 507 | N8: 508 | O8: =SUM(C8:N8) -> 6033 | P8: =AVERAGE(C8:N8) -> 502.75
B9: Sedro-Woolley | C9: 3368 | D9: 3368 | E9: 3354 | F9: 3360 | G9: 3356 | H9: 3348 | I9: 3316 | J9: 3327 | K9: 3310 | L9: 3314 | M9: 3319 | N9: 3323 | O9: 40063 | P9: 3338.583333
B10: Mount Vernon | C10: 7911 | D10: 7982 | E10: 7978 | F10: 7997 | G10: 7977 | H10: 7960 | I10: 8134 | J10: 8164 | K10: 8156 | L10: 8195 | M10: 8340 | N10: 8608 | O10: 97402 | P10: 8116.833333
B11: Stanwood | C11: 1574 | D11: 1582 | E11: 1573 | F11: 1589 | G11: 1593 | H11: 1588 | I11: 1567 | J11: 1608 | K11: 1591 | L11: 1595 | M11: 1602 | N11: =+M11 -> 1602 | O11: 19064 | P11: 1588.666667
B12: Other | C12: 385 | D12: 392 | E12: 388 | F12: 395 | G12: 389 | H12: 379 | I12: 376 | J12: 378 | K12: 378 | L12: 385 | M12: 390 | N12: 400 | O12: 4635 | P12: 386.25
C13: =SUM(C7:C12) -> 15779 | D13: 15862 | E13: 15845 | F13: 15892 | G13: 15864 | H13: 15823 | I13: 15956 | J13: 16038 | K13: 15992 | L13: 16058 | M13: 16229 | N13: =SUM(N7:N12) -> 16530 | O13: 191868 | P13: 15989
C14: =+C13/C$23 -> 0.6587758851 | D14: =+D13/D23 -> 0.658584181 | E14: 0.6578783475 | F14: 0.6548541289 | G14: 0.654131618 | H14: 0.6541403117 | I14: 0.6636995133 | J14: 0.6599185286 | K14: 0.6601172294 | L14: 0.6605512135 | M14: 0.661678966 | N14: 0.6628438528 | O14: 0.658941671 | P14: 0.658941671
A16: WUTC:
B17: Skagit County | C17: 4193 | D17: 4206 | E17: 4213 | F17: 4287 | G17: 4299 | H17: 4307 | I17: 4093 | J17: 4178 | K17: 4164 | L17: 4177 | M17: 4195 | N17: =4140+133 -> 4273 | O17: =SUM(C17:N17) -> 50585 | P17: =AVERAGE(C17:N17) -> 4215.416667
B18: Island County | C18: 1566 | D18: 1594 | E18: 1609 | F18: 1633 | G18: 1625 | H18: 1596 | I18: 1572 | J18: 1605 | K18: 1595 | L18: 1596 | M18: 1605 | N18: 1624 | O18: 19220 | P18: 1601.666667
B19: Snohomish County | C19: 2414 | D19: 2423 | E19: 2418 | F19: 2456 | G19: 2464 | H19: 2463 | I19: 2420 | J19: 2482 | K19: 2475 | L19: 2479 | M19: 2498 | N19: 2511 | O19: 29503 | P19: 2458.583333
C20: =SUM(C17:C19) -> 8173 | D20: 8223 | E20: 8240 | F20: 8376 | G20: 8388 | H20: 8366 | I20: 8085 | J20: 8265 | K20: 8234 | L20: 8252 | M20: 8298 | N20: =SUM(N17:N19) -> 8408 | O20: 99308 | P20: 8275.666667
C21: =+C20/C$23 -> 0.3412241149 | D21: =+D20/D$23 -> 0.341415819 | E21: 0.3421216525 | F21: 0.3451458711 | G21: 0.345868382 | H21: 0.3458596883 | I21: 0.3363004867 | J21: 0.3400814714 | K21: 0.3398827706 | L21: 0.3394487865 | M21: 0.338321034 | N21: 0.3371561472 | O21: 0.341058329 | P21: 0.341058329
C23: =+C20+C13 -> 23952 | D23: =+D20+D13 -> 24085 | E23: 24085 | F23: 24268 | G23: 24252 | H23: 24189 | I23: 24041 | J23: 24303 | K23: 24226 | L23: 24310 | M23: 24527 | N23: 24938 | O23: =+O20+O13 -> 291176 | P23: 24264.66667

Sheet Commodity Revenue
A1: Waste Management of Skagit County
A2: Single Stream Tonnage and Revenue
C4: Total Single Stream Tonnage Processed | O4: Total Single Stream Commodity Revenue | AA4: Average rate per ton
D5: Mixed | J5: Natural | K5: Colored | L5: Mixed | P5: Mixed | V5: Natural | W5: Colored | X5: Mixed | AA5: Mixed | AG5: Natural | AH5: Colored | AI5: Mixed | AJ5: Average $
C6: ONP 6 | D6: Paper | E6: OCC | F6: Alum. | G6: Tin | H6: Glass | I6: PET | J6: HDPE | K6: HDPE | L6: Plastics | M6: Total | O6: ONP 6 | P6: Paper | Q6: OCC | R6: Alum. | S6: Tin | T6: Glass | U6: PET | V6: HDPE | W6: HDPE | X6: Plastics | Y6: Total | AA6: Paper | AB6: OCC | AC6: Alum. | AD6: Tin | AE6: Glass | AF6: PET | AG6: HDPE | AH6: HDPE | AI6: Plastics 3-7 | AJ6: per Ton
C7: =+'CRC Composition'!$AC8 -> 0.3501447677 | D7: =+'CRC Composition'!$AC9 -> 0.1440106054 | E7: =+'CRC Composition'!$AC10 -> 0.2675139689 | F7: =+'CRC Composition'!$AC11 -> 0.009019791681 | G7: =+'CRC Composition'!AC17 -> 0.01561115209 | H7: =+'CRC Composition'!AC12 -> 0.1840852772 | I7: =+'CRC Composition'!AC13 -> 0.01569758614 | J7: =+'CRC Composition'!$AC14 -> 0.004617024837 | K7: =+'CRC Composition'!$AC15 -> 0.004755140327 | L7: =+'CRC Composition'!$AC16 -> 0.004544685731 | M7: =+M20/$M$20 -> 1
A8: May | C8: =+'Tonnages Collected'!$E10*C$7 -> 213.567306 | D8: =+'Tonnages Collected'!$E10*D$7 -> 87.83783127 | E8: =+'Tonnages Collected'!$E10*E$7 -> 163.1674751 | F8: =+'Tonnages Collected'!$E10*F$7 -> 5.501531903 | G8: =+'Tonnages Collected'!$E10*G$7 -> 9.521866395 | H8: =+'Tonnages Collected'!$E10*H$7 -> 112.2809774 | I8: =+'Tonnages Collected'!$E10*I$7 -> 9.574585979 | J8: =+'Tonnages Collected'!$E10*J$7 -> 2.816108214 | K8: =+'Tonnages Collected'!$E10*K$7 -> 2.900350379 | L8: =+'Tonnages Collected'!$E10*L$7 -> 2.771985698 | M8: =SUM(C8:L8) -> 609.9400183 | O8: =+C8*'CRC Prices'!B8 -> 22623.18473 | P8: =+D8*'CRC Prices'!C8 -> 8426.283154 | Q8: =+E8*'CRC Prices'!D8 -> 22484.47807 | R8: =+F8*'CRC Prices'!E8 -> 7922.205941 | S8: =+G8*'CRC Prices'!F8 -> 2190.029271 | T8: =+H8*'CRC Prices'!G8 -> -5989.067332 | U8: =+I8*'CRC Prices'!H8 -> 3159.613373 | V8: =+J8*'CRC Prices'!I8 -> 2337.369818 | W8: =+K8*'CRC Prices'!J8 -> 1624.196212 | X8: =+L8*'CRC Prices'!K8 -> 221.5648168 | Y8: =SUM(O8:X8) -> 64999.85805 | AA8: =+O8/C8 -> 105.93 | AB8: =+P8/D8 -> 95.93 | AC8: 137.8 | AD8: 1440 | AE8: 230 | AF8: -53.34 | AG8: 330 | AH8: 830 | AI8: 560 | AJ8: =+Y8/M8 -> 106.5676232
A9: Jun | C9: =+'Tonnages Collected'!$E11*C$7 -> 212.562432 | D9: =+'Tonnages Collected'!$E11*D$7 -> 87.42453789 | E9: =+'Tonnages Collected'!$E11*E$7 -> 162.3997417 | F9: =+'Tonnages Collected'!$E11*F$7 -> 5.475646169 | G9: =+'Tonnages Collected'!$E11*G$7 -> 9.477064237 | H9: =+'Tonnages Collected'!$E11*H$7 -> 111.7526744 | I9: =+'Tonnages Collected'!$E11*I$7 -> 9.529535765 | J9: =+'Tonnages Collected'!$E11*J$7 -> 2.802857899 | K9: =+'Tonnages Collected'!$E11*K$7 -> 2.886703689 | L9: =+'Tonnages Collected'!$E11*L$7 -> 2.758942988 | M9: 607.0701368 | O9: =+C9*'CRC Prices'!B9 -> 21866.29738 | P9: =+D9*'CRC Prices'!C9 -> 8119.116834 | Q9: =+E9*'CRC Prices'!D9 -> 21498.4778 | R9: =+F9*'CRC Prices'!E9 -> 7695.199344 | S9: =+G9*'CRC Prices'!F9 -> 1770.41037 | T9: =+H9*'CRC Prices'!G9 -> -5960.887653 | U9: =+I9*'CRC Prices'!H9 -> 3263.008341 | V9: =+J9*'CRC Prices'!I9 -> 2522.572109 | W9: =+K9*'CRC Prices'!J9 -> 1674.432475 | X9: =+L9*'CRC Prices'!K9 -> 275.8942988 | Y9: =SUM(O9:X9) -> 62724.52131 | AA9: =+O9/C9 -> 102.87 | AB9: 92.87 | AC9: 132.38 | AD9: 1405.35 | AE9: 186.81 | AF9: -53.34 | AG9: 342.41 | AH9: 900 | AI9: 580.05 | AJ9: 103.3233518
A10: Jul | C10: =+'Tonnages Collected'!$E12*C$7 -> 238.4919025 | D10: =+'Tonnages Collected'!$E12*D$7 -> 98.08903749 | E10: =+'Tonnages Collected'!$E12*E$7 -> 182.2101064 | F10: =+'Tonnages Collected'!$E12*F$7 -> 6.143593954 | G10: =+'Tonnages Collected'!$E12*G$7 -> 10.6331258 | H10: =+'Tonnages Collected'!$E12*H$7 -> 125.3848466 | I10: =+'Tonnages Collected'!$E12*I$7 -> 10.69199808 | J10: =+'Tonnages Collected'!$E12*J$7 -> 3.144765076 | K10: =+'Tonnages Collected'!$E12*K$7 -> 3.238838811 | L10: =+'Tonnages Collected'!$E12*L$7 -> 3.095493196 | M10: 681.1237078 | O10: =+C10*'CRC Prices'!B10 -> 24350.02324 | P10: =+D10*'CRC Prices'!C10 -> 9230.178428 | Q10: =+E10*'CRC Prices'!D10 -> 25128.59577 | R10: =+F10*'CRC Prices'!E10 -> 9135.954261 | S10: =+G10*'CRC Prices'!F10 -> 1882.063266 | T10: =+H10*'CRC Prices'!G10 -> -6688.027716 | U10: =+I10*'CRC Prices'!H10 -> 3817.043313 | V10: =+J10*'CRC Prices'!I10 -> 3035.956205 | W10: =+K10*'CRC Prices'!J10 -> 2008.080063 | X10: =+L10*'CRC Prices'!K10 -> 355.9817175 | Y10: 72255.84855 | AA10: 102.1 | AB10: 94.1 | AC10: 137.91 | AD10: 1487.07 | AE10: 177 | AF10: -53.34 | AG10: 357 | AH10: 965.4 | AI10: 620 | AJ10: 106.0832969
A11: Aug | C11: =+'Tonnages Collected'!$E13*C$7 -> 198.1473638 | D11: =+'Tonnages Collected'!$E13*D$7 -> 81.49578243 | E11: =+'Tonnages Collected'!$E13*E$7 -> 151.386491 | F11: =+'Tonnages Collected'!$E13*F$7 -> 5.10431144 | G11: =+'Tonnages Collected'!$E13*G$7 -> 8.834370575 | H11: =+'Tonnages Collected'!$E13*H$7 -> 104.1740896 | I11: =+'Tonnages Collected'!$E13*I$7 -> 8.883283711 | J11: =+'Tonnages Collected'!$E13*J$7 -> 2.612780154 | K11: =+'Tonnages Collected'!$E13*K$7 -> 2.690939883 | L11: =+'Tonnages Collected'!$E13*L$7 -> 2.571843362 | M11: 565.9012558 | O11: =+C11*'CRC Prices'!B11 -> 19814.73638 | P11: =+D11*'CRC Prices'!C11 -> 7484.572658 | Q11: =+E11*'CRC Prices'!D11 -> 20284.27592 | R11: =+F11*'CRC Prices'!E11 -> 7958.029879 | S11: =+G11*'CRC Prices'!F11 -> 1750.265498 | T11: =+H11*'CRC Prices'!G11 -> -5556.645937 | U11: =+I11*'CRC Prices'!H11 -> 3118.032582 | V11: =+J11*'CRC Prices'!I11 -> 2575.156119 | W11: =+K11*'CRC Prices'!J11 -> 1798.839493 | X11: =+L11*'CRC Prices'!K11 -> 308.9298247 | Y11: 59536.19242 | AA11: 100 | AB11: 91.84 | AC11: 133.99 | AD11: 1559.08 | AE11: 198.12 | AF11: -53.34 | AG11: 351 | AH11: 985.6 | AI11: 668.48 | AJ11: 105.2059733
A12: Sep | C12: =+'Tonnages Collected'!$E14*C$7 -> 210.162353 | D12: =+'Tonnages Collected'!$E14*D$7 -> 86.43741236 | E12: =+'Tonnages Collected'!$E14*E$7 -> 160.5660582 | F12: =+'Tonnages Collected'!$E14*F$7 -> 5.413819705 | G12: =+'Tonnages Collected'!$E14*G$7 -> 9.370057071 | H12: =+'Tonnages Collected'!$E14*H$7 -> 110.4908557 | I12: =+'Tonnages Collected'!$E14*I$7 -> 9.421936134 | J12: =+'Tonnages Collected'!$E14*J$7 -> 2.771210348 | K12: =+'Tonnages Collected'!$E14*K$7 -> 2.85410942 | L12: =+'Tonnages Collected'!$E14*L$7 -> 2.727791287 | M12: 600.2156032 | O12: =+C12*'CRC Prices'!B12 -> 19740.54981 | P12: =+D12*'CRC Prices'!C12 -> 7427.566844 | Q12: =+E12*'CRC Prices'!D12 -> 19868.44404 | R12: =+F12*'CRC Prices'!E12 -> 8850.999697 | S12: =+G12*'CRC Prices'!F12 -> 2145.743069 | T12: =+H12*'CRC Prices'!G12 -> -5893.582243 | U12: =+I12*'CRC Prices'!H12 -> 3410.740881 | V12: =+J12*'CRC Prices'!I12 -> 2722.991288 | W12: =+K12*'CRC Prices'!J12 -> 1903.690983 | X12: =+L12*'CRC Prices'!K12 -> 263.9683628 | Y12: 60441.11274 | AA12: 93.93 | AB12: 85.93 | AC12: 123.74 | AD12: 1634.89 | AE12: 229 | AF12: -53.34 | AG12: 362 | AH12: 982.6 | AI12: 667 | AJ12: 100.6990029
A13: Oct | C13: =+'Tonnages Collected'!$E15*C$7 -> 221.5604262 | D13: =+'Tonnages Collected'!$E15*D$7 -> 91.12531169 | E13: =+'Tonnages Collected'!$E15*E$7 -> 169.2742957 | F13: =+'Tonnages Collected'!$E15*F$7 -> 5.707436104 | G13: =+'Tonnages Collected'!$E15*G$7 -> 9.87823846 | H13: =+'Tonnages Collected'!$E15*H$7 -> 116.4832841 | I13: =+'Tonnages Collected'!$E15*I$7 -> 9.932931164 | J13: =+'Tonnages Collected'!$E15*J$7 -> 2.921505859 | K13: =+'Tonnages Collected'!$E15*K$7 -> 3.008900931 | L13: =+'Tonnages Collected'!$E15*L$7 -> 2.875731983 | M13: 632.7680622 | O13: =+C13*'CRC Prices'!B13 -> 19297.91312 | P13: =+D13*'CRC Prices'!C13 -> 7116.886843 | Q13: =+E13*'CRC Prices'!D13 -> 21144.05228 | R13: =+F13*'CRC Prices'!E13 -> 9303.748667 | S13: =+G13*'CRC Prices'!F13 -> 2013.580128 | T13: =+H13*'CRC Prices'!G13 -> -6213.218376 | U13: =+I13*'CRC Prices'!H13 -> 3446.727114 | V13: =+J13*'CRC Prices'!I13 -> 2860.154236 | W13: =+K13*'CRC Prices'!J13 -> 1976.847911 | X13: =+L13*'CRC Prices'!K13 -> 343.9663025 | Y13: 61290.65822 | AA13: 87.1 | AB13: 78.1 | AC13: 124.91 | AD13: 1630.11 | AE13: 203.84 | AF13: -53.34 | AG13: 347 | AH13: 979 | AI13: 657 | AJ13: 96.86117534
A14: Nov | C14: =+'Tonnages Collected'!$E16*C$7 -> 191.5055383 | D14: =+'Tonnages Collected'!$E16*D$7 -> 78.76407429 | E14: =+'Tonnages Collected'!$E16*E$7 -> 146.3120724 | F14: =+'Tonnages Collected'!$E16*F$7 -> 4.93321683 | G14: =+'Tonnages Collected'!$E16*G$7 -> 8.538245779 | H14: =+'Tonnages Collected'!$E16*H$7 -> 100.6822131 | I14: =+'Tonnages Collected'!$E16*I$7 -> 8.585519365 | J14: =+'Tonnages Collected'!$E16*J$7 -> 2.52520074 | K14: =+'Tonnages Collected'!$E16*K$7 -> 2.600740585 | L14: =+'Tonnages Collected'!$E16*L$7 -> 2.485636135 | M14: 546.9324575 | O14: =+C14*'CRC Prices'!B14 -> 16488.62685 | P14: =+D14*'CRC Prices'!C14 -> 5993.946054 | Q14: =+E14*'CRC Prices'!D14 -> 18129.52889 | R14: =+F14*'CRC Prices'!E14 -> 8556.911253 | S14: =+G14*'CRC Prices'!F14 -> 1690.572664 | T14: =+H14*'CRC Prices'!G14 -> -5370.389244 | U14: =+I14*'CRC Prices'!H14 -> 2764.537235 | V14: =+J14*'CRC Prices'!I14 -> 2113.59302 | W14: =+K14*'CRC Prices'!J14 -> 1708.686564 | X14: =+L14*'CRC Prices'!K14 -> 340.5321505 | Y14: 52416.54544 | AA14: 86.1 | AB14: 76.1 | AC14: 123.91 | AD14: 1734.55 | AE14: 198 | AF14: -53.34 | AG14: 322 | AH14: 837 | AI14: 657 | AJ14: 95.83732821
A15: Dec | C15: =+'Tonnages Collected'!$E17*C$7 -> 237.5870512 | D15: =+'Tonnages Collected'!$E17*D$7 -> 97.71688234 | E15: =+'Tonnages Collected'!$E17*E$7 -> 181.5187913 | F15: =+'Tonnages Collected'!$E17*F$7 -> 6.120284824 | G15: =+'Tonnages Collected'!$E17*G$7 -> 10.59278314 | H15: =+'Tonnages Collected'!$E17*H$7 -> 124.9091296 | I15: =+'Tonnages Collected'!$E17*I$7 -> 10.65143205 | J15: =+'Tonnages Collected'!$E17*J$7 -> 3.132833666 | K15: =+'Tonnages Collected'!$E17*K$7 -> 3.22655048 | L15: =+'Tonnages Collected'!$E17*L$7 -> 3.083748726 | M15: 678.5394874 | O15: =+C15*'CRC Prices'!B15 -> 20092.73692 | P15: =+D15*'CRC Prices'!C15 -> 7189.031034 | Q15: =+E15*'CRC Prices'!D15 -> 22030.9357 | R15: =+F15*'CRC Prices'!E15 -> 10435.63645 | S15: =+G15*'CRC Prices'!F15 -> 2033.814363 | T15: =+H15*'CRC Prices'!G15 -> -6662.652975 | U15: =+I15*'CRC Prices'!H15 -> 2680.539391 | V15: =+J15*'CRC Prices'!I15 -> 2410.402223 | W15: =+K15*'CRC Prices'!J15 -> 1926.250637 | X15: =+L15*'CRC Prices'!K15 -> 175.7736774 | Y15: 62312.46742 | AA15: 84.57 | AB15: 73.57 | AC15: 121.37 | AD15: 1705.09 | AE15: 192 | AF15: -53.34 | AG15: 251.66 | AH15: 769.4 | AI15: 597 | AJ15: 91.83322206
A16: Jan., '13 | C16: =+'Tonnages Collected'!$E18*C$7 -> 243.1211506 | D16: =+'Tonnages Collected'!$E18*D$7 -> 99.9929952 | E16: =+'Tonnages Collected'!$E18*E$7 -> 185.7468965 | F16: =+'Tonnages Collected'!$E18*F$7 -> 6.262844212 | G16: =+'Tonnages Collected'!$E18*G$7 -> 10.83952014 | H16: =+'Tonnages Collected'!$E18*H$7 -> 127.8186297 | I16: =+'Tonnages Collected'!$E18*I$7 -> 10.89953515 | J16: =+'Tonnages Collected'!$E18*J$7 -> 3.205806553 | K16: =+'Tonnages Collected'!$E18*K$7 -> 3.301706307 | L16: =+'Tonnages Collected'!$E18*L$7 -> 3.155578281 | M16: 694.3446627 | O16: =+C16*'CRC Prices'!B16 -> 19991.85222 | P16: =+D16*'CRC Prices'!C16 -> 7117.501398 | Q16: =+E16*'CRC Prices'!D16 -> 22259.90808 | R16: =+F16*'CRC Prices'!E16 -> 10064.20276 | S16: =+G16*'CRC Prices'!F16 -> 1605.766513 | T16: =+H16*'CRC Prices'!G16 -> -6817.845709 | U16: =+I16*'CRC Prices'!H16 -> 2536.32183 | V16: =+J16*'CRC Prices'!I16 -> 1881.808447 | W16: =+K16*'CRC Prices'!J16 -> 1376.81153 | X16: =+L16*'CRC Prices'!K16 -> 179.867962 | Y16: 60196.19503 | AA16: 82.23 | AB16: 71.18 | AC16: 119.84 | AD16: 1606.97 | AE16: 148.14 | AF16: -53.34 | AG16: 232.7 | AH16: 587 | AI16: 417 | AJ16: 86.69497767
A17: Feb | C17: =+'Tonnages Collected'!$E19*C$7 -> 196.138553 | D17: =+'Tonnages Collected'!$E19*D$7 -> 80.66958115 | E17: =+'Tonnages Collected'!$E19*E$7 -> 149.8517402 | F17: =+'Tonnages Collected'!$E19*F$7 -> 5.052564116 | G17: =+'Tonnages Collected'!$E19*G$7 -> 8.744808048 | H17: =+'Tonnages Collected'!$E19*H$7 -> 103.1179764 | I17: =+'Tonnages Collected'!$E19*I$7 -> 8.793225304 | J17: =+'Tonnages Collected'!$E19*J$7 -> 2.586291884 | K17: =+'Tonnages Collected'!$E19*K$7 -> 2.663659232 | L17: =+'Tonnages Collected'!$E19*L$7 -> 2.545770108 | M17: 560.1641695 | O17: =+C17*'CRC Prices'!B17 -> 15706.77533 | P17: =+D17*'CRC Prices'!C17 -> 5512.15248 | Q17: =+E17*'CRC Prices'!D17 -> 16479.19587 | R17: =+F17*'CRC Prices'!E17 -> 8826.829511 | S17: =+G17*'CRC Prices'!F17 -> 692.064109 | T17: =+H17*'CRC Prices'!G17 -> -5500.312863 | U17: =+I17*'CRC Prices'!H17 -> 1406.916049 | V17: =+J17*'CRC Prices'!I17 -> 1259.524147 | W17: =+K17*'CRC Prices'!J17 -> 852.3709544 | X17: =+L17*'CRC Prices'!K17 -> 94.19349399 | Y17: 45329.70908 | AA17: 80.08 | AB17: 68.33 | AC17: 109.97 | AD17: 1747 | AE17: 79.14 | AF17: -53.34 | AG17: 160 | AH17: 487 | AI17: 320 | AJ17: 80.92218593
A18: Mar | C18: =+'Tonnages Collected'!$E20*C$7 -> 197.7939706 | D18: =+'Tonnages Collected'!$E20*D$7 -> 81.3504358 | E18: =+'Tonnages Collected'!$E20*E$7 -> 151.1164952 | F18: =+'Tonnages Collected'!$E20*F$7 -> 5.095207969 | G18: =+'Tonnages Collected'!$E20*G$7 -> 8.818614595 | H18: =+'Tonnages Collected'!$E20*H$7 -> 103.9882965 | I18: =+'Tonnages Collected'!$E20*I$7 -> 8.867440494 | J18: =+'Tonnages Collected'!$E20*J$7 -> 2.608120295 | K18: =+'Tonnages Collected'!$E20*K$7 -> 2.686140628 | L18: =+'Tonnages Collected'!$E20*L$7 -> 2.567256514 | M18: 564.8919786 | O18: =+C18*'CRC Prices'!B18 -> 14223.36443 | P18: =+D18*'CRC Prices'!C18 -> 4582.470049 | Q18: =+E18*'CRC Prices'!D18 -> 14334.91073 | R18: =+F18*'CRC Prices'!E18 -> 8901.328322 | S18: =+G18*'CRC Prices'!F18 -> 1296.336345 | T18: =+H18*'CRC Prices'!G18 -> -5546.735734 | U18: =+I18*'CRC Prices'!H18 -> 1480.862563 | V18: =+J18*'CRC Prices'!I18 -> 1374.479396 | W18: =+K18*'CRC Prices'!J18 -> 1281.28908 | X18: =+L18*'CRC Prices'!K18 -> 146.3336213 | Y18: 42074.6388 | AA18: 71.91 | AB18: 56.33 | AC18: 94.86 | AD18: 1747 | AE18: 147 | AF18: -53.34 | AG18: 167 | AH18: 527 | AI18: 477 | AJ18: 74.48262747
A19: Apr | C19: =+'Tonnages Collected'!$E21*C$7 -> 212.8271387 | D19: =+'Tonnages Collected'!$E21*D$7 -> 87.53340876 | E19: =+'Tonnages Collected'!$E21*E$7 -> 162.6019801 | F19: =+'Tonnages Collected'!$E21*F$7 -> 5.48246506 | G19: =+'Tonnages Collected'!$E21*G$7 -> 9.488866143 | H19: =+'Tonnages Collected'!$E21*H$7 -> 111.8918414 | I19: =+'Tonnages Collected'!$E21*I$7 -> 9.541403015 | J19: =+'Tonnages Collected'!$E21*J$7 -> 2.806348333 | K19: =+'Tonnages Collected'!$E21*K$7 -> 2.890298537 | L19: =+'Tonnages Collected'!$E21*L$7 -> 2.762378734 | M19: 607.8261288 | O19: =+C19*'CRC Prices'!B19 -> 15302.27127 | P19: =+D19*'CRC Prices'!C19 -> 4974.52362 | Q19: =+E19*'CRC Prices'!D19 -> 15152.87853 | R19: =+F19*'CRC Prices'!E19 -> 7329.343064 | S19: =+G19*'CRC Prices'!F19 -> 750.9488666 | T19: =+H19*'CRC Prices'!G19 -> -5968.310821 | U19: =+I19*'CRC Prices'!H19 -> 1942.05717 | V19: =+J19*'CRC Prices'!I19 -> 1621.143242 | W19: =+K19*'CRC Prices'!J19 -> 1754.411212 | X19: =+L19*'CRC Prices'!K19 -> 102.2080132 | Y19: 42961.47416 | AA19: 71.9 | AB19: 56.83 | AC19: 93.19 | AD19: 1336.87 | AE19: 79.14 | AF19: -53.34 | AG19: 203.54 | AH19: 577.67 | AI19: 607 | AJ19: 70.68053203
C20: =SUM(C8:C19) -> 2573.465186 | D20: =SUM(D8:D19) -> 1058.437291 | E20: 1966.152144 | F20: 66.29292229 | G20: 114.7375604 | H20: 1352.974814 | I20: 115.3728262 | J20: 33.93382902 | K20: 34.94893888 | L20: 33.40215701 | M20: 7349.717669 | O20: =SUM(O8:O19) -> 229498.3317 | P20: =SUM(P8:P19) -> 83174.2294 | Q20: 238795.6817 | R20: 104980.3892 | S20: 19821.59446 | T20: -72167.6766 | U20: 33026.39984 | V20: 26715.15025 | W20: 19885.90711 | X20: 2809.214242 | Y20: =SUM(Y8:Y19) -> 686539.2212 | AA20: =+O20/C20 -> 89.17872017 | AB20: =+P20/D20 -> 78.58210413 | AC20: =+Q20/E20 -> 121.4533079 | AD20: =+R20/F20 -> 1583.58367 | AE20: =+S20/G20 -> 172.7559345 | AF20: =+T20/H20 -> -53.34 | AG20: =+U20/I20 -> 286.2580464 | AH20: =+V20/J20 -> 787.2719059 | AI20: =+W20/K20 -> 568.9988809 | AJ20: 93.41028488
C23: Total Single Stream Tonnage Processed | O23: Total Single Stream Commodity Revenue
D24: Mixed | J24: Natural | K24: Colored | L24: Mixed | P24: Mixed | V24: Natural | W24: Colored | X24: Mixed
C25: =+C6 -> ONP 6 | D25: Paper | E25: =+E6 -> OCC | F25: Alum. | G25: Tin | H25: Glass | I25: PET | J25: HDPE | K25: HDPE | L25: Plastics | M25: Total | O25: =+O6 -> ONP 6 | P25: Paper | Q25: =+Q6 -> OCC | R25: Alum. | S25: Tin | T25: Glass | U25: PET | V25: HDPE | W25: HDPE | X25: Plastics | Y25: Total
A26: % Regulated | B26: =+Customers!O21 -> 0.341058329
A28: May | C28: =+C8*$B$26 -> 72.83890852 | D28: =+D8*$B$26 -> 29.95782396 | E28: 55.6496264 | F28: 1.876343278 | G28: 3.247511842 | H28: 38.29436252 | I28: 3.265492295 | J28: 0.9604571617 | K28: 0.9891886536 | L28: 0.9454088101 | M28: =SUM(C28:L28) -> 208.0251234 | O28: =+O8*$B$26 -> 7715.82558 | P28: =+P8*$B$26 -> 2873.854052 | Q28: 7668.518518 | R28: 2701.93432 | S28: 746.9277235 | T28: -2042.621297 | U28: 1077.612457 | V28: 797.1794442 | W28: 553.945646 | X28: 75.56652619 | Y28: =SUM(O28:X28) -> 22168.74297
A29: Jun | C29: =+C9*$B$26 -> 72.49618787 | D29: 29.81686681 | E29: 55.38778453 | F29: 1.867514733 | G29: 3.232231692 | H29: 38.1141804 | I29: 3.250127544 | J29: 0.9559380315 | K29: 0.9845343364 | L29: 0.9409604852 | M29: =SUM(C29:L29) -> 207.0463264 | O29: =+O9*$B$26 -> 7457.682846 | P29: 2769.09242 | Q29: 7332.234916 | R29: 2624.51183 | S29: 603.8132025 | T29: -2033.010382 | U29: 1112.876172 | V29: 860.3442284 | W29: 571.0791418 | X29: 94.09604852 | Y29: =SUM(O29:X29) -> 21392.72042
A30: =+A10 -> Jul | C30: 81.33964973 | D30: 33.45408322 | E30: 62.14427441 | F30: 2.095323888 | G30: 3.626516117 | H30: 42.76354625 | I30: 3.646594997 | J30: 1.072548322 | K30: 1.104632953 | L30: 1.055743737 | M30: 232.3029136 | O30: 8304.778237 | P30: 3148.029231 | Q30: 8570.316884 | R30: 3115.893294 | S30: 641.8933526 | T30: -2281.007557 | U30: 1301.834414 | V30: 1035.43815 | W30: 684.8724307 | X30: 121.4105297 | Y30: 24643.45897
A31: Aug | C31: 67.57980878 | D31: 27.79481537 | E31: 51.63162364 | F31: 1.74086793 | G31: 3.013035666 | H31: 35.52944091 | I31: 3.029717898 | J31: 0.8911104332 | K31: 0.9177674599 | L31: 0.8771485995 | M31: 193.0053367 | O31: 6757.980878 | P31: 2552.675844 | Q31: 6918.121251 | R31: 2714.152373 | S31: 596.9426262 | T31: -1895.140378 | U31: 1063.430982 | V31: 878.2784429 | W31: 613.5091916 | X31: 105.3630898 | Y31: 20305.3143
A32: Sep | C32: 71.67762091 | D32: 29.48019942 | E32: 54.7623915 | F32: 1.846428302 | G32: 3.195736007 | H32: 37.68382661 | I32: 3.213429794 | J32: 0.9451443704 | K32: 0.9734177895 | L32: 0.9303359382 | M32: 204.7085307 | O32: 6732.678932 | P32: 2533.233536 | Q32: 6776.298325 | R32: 3018.707166 | S32: 731.8235456 | T32: -2010.055312 | U32: 1163.261585 | V32: 928.6988584 | W32: 649.2696656 | X32: 90.02860874 | Y32: 20613.94491
A33: Oct | C33: 75.56502871 | D33: 31.07904653 | E33: 57.73240844 | F33: 1.94656862 | G33: 3.369055503 | H33: 39.72759425 | I33: 3.387708905 | J33: 0.9964039066 | K33: 1.026210723 | L33: 0.9807923448 | M33: 215.8108179 | O33: 6581.714001 | P33: 2427.273534 | Q33: 7211.355138 | R33: 3173.120974 | S33: 686.7482736 | T33: -2119.069877 | U33: 1175.53499 | V33: 975.4794245 | W33: 674.2204453 | X33: 117.3125724 | Y33: 20903.68948
A34: Nov | C34: 65.31455887 | D34: 26.86314356 | E34: 49.90095093 | F34: 1.682514689 | G34: 2.912039838 | H34: 34.33850734 | I34: 2.928162888 | J34: 0.8612407449 | K34: 0.887004238 | L34: 0.8477469067 | M34: 186.53587 | O34: 5623.583519 | P34: 2044.285225 | Q34: 6183.22683 | R34: 2918.405853 | S34: 576.5838879 | T34: -1831.615982 | U34: 942.8684499 | V34: 720.8585035 | W34: 582.7617844 | X34: 116.1413262 | Y34: 17877.0994
A35: Dec | C35: 81.03104267 | D35: 33.3271566 | E35: 61.90849565 | F35: 2.087374115 | G35: 3.612756917 | H35: 42.60129903 | I35: 3.632759617 | J35: 1.068479015 | K35: 1.100441915 | L35: 1.051738187 | M35: 231.4215437 | O35: 6852.795278 | P35: 2451.878911 | Q35: 7513.834117 | R35: 3559.16073 | S35: 693.6493281 | T35: -2272.35329 | U35: 914.2202853 | V35: 822.0877543 | W35: 656.9638234 | X35: 59.94907669 | Y35: 21252.18601
A36: Jan., '13 | C36: 82.91849337 | D36: 34.10344385 | E36: 63.35052613 | F36: 2.135995182 | G36: 3.696908624 | H36: 43.59360826 | I36: 3.717377246 | J36: 1.093367026 | K36: 1.126074436 | L36: 1.076236255 | M36: 236.8120304 | O36: 6818.38771 | P36: 2427.483133 | Q36: 7591.927052 | R36: 3432.480177 | S36: 547.6600436 | T36: -2325.283065 | U36: 865.0336852 | V36: 641.8064443 | W36: 469.5730397 | X36: 61.34546655 | Y36: 20530.41369
A37: Feb | C37: 66.89468714 | D37: 27.51303255 | E37: 51.10818412 | F37: 1.723219075 | G37: 2.98248962 | H37: 35.16924473 | I37: 2.999002729 | J37: 0.8820763881 | K37: 0.9084631668 | L37: 0.868256099 | M37: 191.0486556 | O37: 5356.926546 | P37: 1879.965514 | Q37: 5620.367007 | R37: 3010.463723 | S37: 236.0342285 | T37: -1875.927514 | U37: 479.8404366 | V37: 429.571201 | W37: 290.7082134 | X37: 32.12547566 | Y37: 15460.07483
A38: Mar | C38: 67.4592811 | D38: 27.7452437 | E38: 51.53953933 | F38: 1.737763116 | G38: 3.007661958 | H38: 35.46607463 | I38: 3.024314437 | J38: 0.8895211498 | K38: 0.916130634 | L38: 0.8755842169 | M38: 192.6611143 | O38: 4850.996904 | P38: 1562.889577 | Q38: 4889.040701 | R38: 3035.872163 | S38: 442.1263078 | T38: -1891.760421 | U38: 505.060511 | V38: 468.7776459 | W38: 436.9943124 | X38: 49.90830036 | Y38: 14349.906
A39: Apr | C39: 72.58646827 | D39: 29.85399812 | E39: 55.45675962 | F39: 1.869840372 | G39: 3.236256831 | H39: 38.16164446 | I39: 3.254174968 | J39: 0.9571284731 | K39: 0.9857603893 | L39: 0.942132275 | M39: 207.3041638 | O39: 5218.967069 | P39: 1696.602713 | Q39: 5168.015429 | R39: 2499.733498 | S39: 256.1173656 | T39: -2035.542115 | U39: 662.3547731 | V39: 552.904405 | W39: 598.3565563 | X39: 34.85889418 | Y39: 14652.36859
C40: =SUM(C28:C39) -> 877.7017359 | D40: =SUM(D28:D39) -> 360.9888537 | E40: 670.5725647 | F40: 22.6097533 | G40: 39.13220061 | H40: 461.4433294 | I40: 39.34886332 | J40: 11.57341502 | K40: 11.91962669 | L40: 11.39208385 | M40: 2506.682427 | O40: =SUM(O28:O39) -> 78272.3175 | P40: =SUM(P28:P39) -> 28367.26369 | Q40: 81443.25617 | R40: 35804.4361 | S40: 6760.319886 | T40: -24613.38719 | U40: 11263.92874 | V40: 9111.424502 | W40: 6782.25425 | X40: 958.105915 | Y40: =SUM(Y28:Y39) -> 234149.9196

Sheet Tonnages Collected
A1: WM of Skagit County
A2: Residential Recycling Tons Collected
D5: Less:
C6: Res'l | D6: CRC
C7: Collected | D7: Residual | E7: Net
A8: Month | C8: Tons | D8: Rate | E8: Tons
A10: May | C10: =+'Tonnages by day'!G28 -> 634.32 | D10: =+'CRC Composition'!C18 -> 0.03843483047 | E10: =+C10-C10*D10 -> 609.9400183
A11: Jun | C11: =+'Tonnages by day'!G49 -> 630.95 | D11: =+'CRC Composition'!E18 -> 0.03784747324 | E11: =+C11-C11*D11 -> 607.0701368
A12: Jul | C12: =+'Tonnages by day'!G72 -> 709.17 | D12: =+'CRC Composition'!G18 -> 0.0395480522 | E12: 681.1237078
A13: Aug | C13: =+'Tonnages by day'!G93 -> 589.62 | D13: =+'CRC Composition'!I18 -> 0.04022717034 | E13: 565.9012558
A14: Sep | C14: =+'Tonnages by day'!G115 -> 624.02 | D14: =+'CRC Composition'!K18 -> 0.03814684916 | E14: 600.2156032
A15: Oct | C15: =+'Tonnages by day'!G138 -> 659.47 | D15: =+'CRC Composition'!M18 -> 0.04048999617 | E15: 632.7680622
A16: Nov | C16: =+'Tonnages by day'!G158 -> 568.95 | D16: =+'CRC Composition'!O18 -> 0.0386985544 | E16: 546.9324575
A17: Dec | C17: =+'Tonnages by day'!G181 -> 704.86 | D17: =+'CRC Composition'!Q18 -> 0.03734147578 | E17: 678.5394874
A18: Jan | C18: =+'Tonnages by day'!G203 -> 723.42 | D18: =+'CRC Composition'!S18 -> 0.04019150333 | E18: 694.3446627
A19: Feb | C19: =+'Tonnages by day'!G223 -> 583.33 | D19: =+'CRC Composition'!U18 -> 0.0397130792 | E19: 560.1641695
A20: Mar | C20: =+'Tonnages by day'!G245 -> 587.56 | D20: =+'CRC Composition'!W18 -> 0.03857992616 | E20: 564.8919786
A21: Apr | C21: =+'Tonnages by day'!G267 -> 632.58 | D21: =+'CRC Composition'!Y18 -> 0.03913160588 | E21: 607.8261288
C22: =SUM(C10:C21) -> 7648.25 | D22: =(+C22-E22)/C22 -> 0.03903276324 | E22: =SUM(E10:E21) -> 7349.717669

Sheet Tonnages by day
A1: WM of Skagit
A2: Report for Residential Sideload Recycling
A3: Report Dates:5/1/2014-3/31/2015
A5: SKAGIT YARD
A6: Date | B6: Tons | D6: Loads | F6: Tons/Load
A7: 2014-05-01 | B7: 24.1 | D7: 6 | F7: =+B7/D7 -> 4.016666667
A8: 2014-05-02 | B8: 24.88 | D8: 5 | F8: =+B8/D8 -> 4.976
A9: 2014-05-05 | B9: 31.5 | D9: 6 | F9: 5.25
A10: 2014-05-06 | B10: 30.8 | D10: 8 | F10: 3.85
A11: 2014-05-07 | B11: 41.39 | D11: 9 | F11: 4.598888889
A12: 2014-05-08 | B12: 36.34 | D12: 10 | F12: 3.634
A13: 2014-05-09 | B13: 36.35 | D13: 8 | F13: 4.54375
A14: 2014-05-12 | B14: 14.85 | D14: 3 | F14: 4.95
A15: 2014-05-13 | B15: 20.29 | D15: 6 | F15: 3.381666667
A16: 2014-05-14 | B16: 33.54 | D16: 7 | F16: 4.791428571
A17: 2014-05-15 | B17: 23.46 | D17: 7 | F17: 3.351428571
A18: 2014-05-16 | B18: 23.17 | D18: 5 | F18: 4.634
A19: 2014-05-19 | B19: 24.94 | D19: 5 | F19: 4.988
A20: 2014-05-20 | B20: 34.45 | D20: 8 | F20: 4.30625
A21: 2014-05-21 | B21: 42.42 | D21: 9 | F21: 4.713333333
A22: 2014-05-22 | B22: 37.68 | D22: 9 | F22: 4.186666667
A23: 2014-05-23 | B23: 34.52 | D23: 7 | F23: 4.931428571
A24: 2014-05-26 | B24: 14.3 | D24: 3 | F24: 4.766666667
A25: 2014-05-27 | B25: 27.45 | D25: 5 | F25: 5.49
A26: 2014-05-28 | B26: 33.14 | D26: 9 | F26: 3.682222222
A27: 2014-05-29 | B27: 22.84 | D27: 6 | F27: 3.806666667
A28: 2014-05-30 | B28: 21.91 | D28: 4 | F28: 5.4775 | G28: =SUM(B7:B28) -> 634.32
A29: 2014-06-02 | B29: 30.19 | D29: 8 | F29: 3.77375
A30: 2014-06-03 | B30: 30.92 | D30: 8 | F30: 3.865
A31: 2014-06-04 | B31: 37.38 | D31: 9 | F31: 4.153333333
A32: 2014-06-05 | B32: 38.25 | D32: 7 | F32: 5.464285714
A33: 2014-06-06 | B33: 34.88 | D33: 8 | F33: 4.36
A34: 2014-06-09 | B34: 14.57 | D34: 3 | F34: 4.856666667
A35: 2014-06-10 | B35: 27.3 | D35: 6 | F35: 4.55
A36: 2014-06-11 | B36: 34.6 | D36: 8 | F36: 4.325
A37: 2014-06-12 | B37: 23.97 | D37: 7 | F37: 3.424285714
A38: 2014-06-13 | B38: 24.78 | D38: 5 | F38: 4.956
A39: 2014-06-16 | B39: 29.77 | D39: 7 | F39: 4.252857143
A40: 2014-06-17 | B40: 34.75 | D40: 8 | F40: 4.34375
A41: 2014-06-18 | B41: 44.56 | D41: 13 | F41: 3.427692308
A42: 2014-06-19 | B42: 37.88 | D42: 9 | F42: 4.208888889
A43: 2014-06-20 | B43: 30.24 | D43: 7 | F43: 4.32
A44: 2014-06-23 | B44: 14.51 | D44: 3 | F44: 4.836666667
A45: 2014-06-24 | B45: 32.52 | D45: 6 | F45: 5.42
A46: 2014-06-25 | B46: 34.42 | D46: 8 | F46: 4.3025
A47: 2014-06-26 | B47: 23.21 | D47: 6 | F47: 3.868333333
A48: 2014-06-27 | B48: 25.42 | D48: 7 | F48: 3.631428571
A49: 2014-06-30 | B49: 26.83 | D49: 6 | F49: 4.471666667 | G49: =SUM(B29:B49) -> 630.95
A50: 2014-07-01 | B50: 29.88 | D50: 8 | F50: 3.735
A51: 2014-07-02 | B51: 37.96 | D51: 9 | F51: 4.217777778
A52: 2014-07-03 | B52: 38.5 | D52: 10 | F52: 3.85
A53: 2014-07-04 | B53: 10 | D53: 4 | F53: 2.5
A54: 2014-07-07 | B54: 38.72 | D54: 8 | F54: 4.84
A55: 2014-07-08 | B55: 27.39 | D55: 5 | F55: 5.478
A56: 2014-07-09 | B56: 28.89 | D56: 8 | F56: 3.61125
A57: 2014-07-10 | B57: 29.09 | D57: 8 | F57: 3.63625
A58: 2014-07-11 | B58: 16.91 | D58: 4 | F58: 4.2275
A59: 2014-07-14 | B59: 29.97 | D59: 7 | F59: 4.281428571
A60: 2014-07-15 | B60: 39.34 | D60: 8 | F60: 4.9175
A61: 2014-07-16 | B61: 41.09 | D61: 9 | F61: 4.565555556
A62: 2014-07-17 | B62: 36.63 | D62: 10 | F62: 3.663
A63: 2014-07-18 | B63: 44.38 | D63: 9 | F63: 4.931111111
A64: 2014-07-21 | B64: 14.5 | D64: 3 | F64: 4.833333333
A65: 2014-07-22 | B65: 29.28 | D65: 6 | F65: 4.88
A66: 2014-07-23 | B66: 34.51 | D66: 8 | F66: 4.31375
A67: 2014-07-24 | B67: 25.88 | D67: 7 | F67: 3.697142857
A68: 2014-07-25 | B68: 24.14 | D68: 6 | F68: 4.023333333
A69: 2014-07-28 | B69: 24.36 | D69: 6 | F69: 4.06
A70: 2014-07-29 | B70: 32.77 | D70: 8 | F70: 4.09625
A71: 2014-07-30 | B71: 37.75 | D71: 8 | F71: 4.71875
A72: 2014-07-31 | B72: 37.23 | D72: 9 | F72: =+B72/D72 -> 4.136666667 | G72: =SUM(B50:B72) -> 709.17
A73: 2014-08-01 | B73: 29.44 | D73: 8 | F73: 3.68
A74: 2014-08-04 | B74: 8.68 | D74: 2 | F74: 4.34
A75: 2014-08-05 | B75: 21.35 | D75: 5 | F75: 4.27
A76: 2014-08-06 | B76: 30.9 | D76: 9 | F76: 3.433333333
A77: 2014-08-07 | B77: 22.98 | D77: 6 | F77: 3.83
A78: 2014-08-08 | B78: 22.31 | D78: 5 | F78: 4.462
A79: 2014-08-11 | B79: 29.49 | D79: 7 | F79: 4.212857143
A80: 2014-08-12 | B80: 31.12 | D80: 8 | F80: 3.89
A81: 2014-08-13 | B81: 42.46 | D81: 9 | F81: 4.717777778
A82: 2014-08-14 | B82: 34 | D82: 8 | F82: 4.25
A83: 2014-08-15 | B83: 36.25 | D83: 8 | F83: 4.53125
A84: 2014-08-18 | B84: 12.92 | D84: 3 | F84: 4.306666667
A85: 2014-08-19 | B85: 25.43 | D85: 6 | F85: 4.238333333
A86: 2014-08-20 | B86: 31.23 | D86: 8 | F86: 3.90375
A87: 2014-08-21 | B87: 23.35 | D87: 6 | F87: 3.891666667
A88: 2014-08-22 | B88: 20.68 | D88: 4 | F88: 5.17
A89: 2014-08-25 | B89: 25.67 | D89: 6 | F89: 4.278333333
A90: 2014-08-26 | B90: 35.29 | D90: 8 | F90: 4.41125
A91: 2014-08-27 | B91: 30.05 | D91: 6 | F91: 5.008333333
A92: 2014-08-28 | B92: 39.3 | D92: 10 | F92: 3.93
A93: 2014-08-29 | B93: 36.72 | D93: 8 | F93: 4.59 | G93: =SUM(B73:B93) -> 589.62
A94: 2014-09-01 | B94: 16.79 | D94: 4 | F94: 4.1975
A95: 2014-09-02 | B95: 24.84 | D95: 5 | F95: 4.968
A96: 2014-09-03 | B96: 33.9 | D96: 8 | F96: 4.2375
A97: 2014-09-04 | B97: 24.51 | D97: 6 | F97: 4.085
A98: 2014-09-05 | B98: 21.81 | D98: 5 | F98: 4.362
A99: 2014-09-08 | B99: 24.29 | D99: 6 | F99: 4.048333333
A100: 2014-09-09 | B100: 35.93 | D100: 8 | F100: 4.49125
A101: 2014-09-10 | B101: 39.86 | D101: 9 | F101: 4.428888889
A102: 2014-09-11 | B102: 37.63 | D102: 10 | F102: 3.763
A103: 2014-09-12 | B103: 37.28 | D103: 8 | F103: 4.66
A104: 2014-09-15 | B104: 13.47 | D104: 3 | F104: 4.49
A105: 2014-09-16 | B105: 26.82 | D105: 6 | F105: 4.47
A106: 2014-09-17 | B106: 32.44 | D106: 8 | F106: 4.055
A107: 2014-09-18 | B107: 22.5 | D107: 6 | F107: 3.75
A108: 2014-09-19 | B108: 21.51 | D108: 5 | F108: 4.302
A109: 2014-09-22 | B109: 27.15 | D109: 7 | F109: 3.878571429
A110: 2014-09-23 | B110: 33.02 | D110: 8 | F110: 4.1275
A111: 2014-09-24 | B111: 39.67 | D111: 8 | F111: 4.95875
A112: 2014-09-25 | B112: 36.24 | D112: 8 | F112: 4.53
A113: 2014-09-26 | B113: 33.71 | D113: 8 | F113: 4.21375
A114: 2014-09-29 | B114: 12.95 | D114: 3 | F114: 4.316666667
A115: 2014-09-30 | B115: 27.7 | D115: 6 | F115: 4.616666667 | G115: =SUM(B94:B115) -> 624.02
A116: 2014-10-01 | B116: 33.15 | D116: 8 | F116: 4.14375
A117: 2014-10-02 | B117: 22.6 | D117: 6 | F117: 3.766666667
A118: 2014-10-03 | B118: 21.61 | D118: 5 | F118: 4.322
A119: 2014-10-06 | B119: 28.58 | D119: 7 | F119: 4.082857143
A120: 2014-10-07 | B120: 33.52 | D120: 8 | F120: 4.19
A121: 2014-10-08 | B121: 37.43 | D121: 9 | F121: 4.158888889
A122: 2014-10-09 | B122: 35.89 | D122: 8 | F122: 4.48625
A123: 2014-10-10 | B123: 35.08 | D123: 8 | F123: 4.385
A124: 2014-10-13 | B124: 12.67 | D124: 3 | F124: 4.223333333
A125: 2014-10-14 | B125: 33.7 | D125: 7 | F125: 4.814285714
A126: 2014-10-15 | B126: 31.39 | D126: 7 | F126: 4.484285714
A127: 2014-10-16 | B127: 22.73 | D127: 5 | F127: 4.546
A128: 2014-10-17 | B128: 23.62 | D128: 6 | F128: 3.936666667
A129: 2014-10-20 | B129: 28.57 | D129: 6 | F129: 4.761666667
A130: 2014-10-21 | B130: 31.98 | D130: 9 | F130: 3.553333333
A131: 2014-10-22 | B131: 42.58 | D131: 11 | F131: 3.870909091
A132: 2014-10-23 | B132: 33.86 | D132: 9 | F132: 3.762222222
A133: 2014-10-24 | B133: 34.64 | D133: 9 | F133: 3.848888889
A134: 2014-10-27 | B134: 12.87 | D134: 3 | F134: 4.29
A135: 2014-10-28 | B135: 26.07 | D135: 6 | F135: 4.345
A136: 2014-10-29 | B136: 30.17 | D136: 6 | F136: =+B136/D136 -> 5.028333333
A137: 2014-10-30 | B137: 22.22 | D137: 5 | F137: 4.444
A138: 2014-10-31 | B138: 24.54 | D138: 6 | F138: 4.09 | G138: =SUM(B116:B138) -> 659.47
A139: 2014-11-03 | B139: 30.39 | D139: 7 | F139: 4.341428571
A140: 2014-11-04 | B140: 33.01 | D140: 8 | F140: 4.12625
A141: 2014-11-05 | B141: 38.51 | D141: 9 | F141: 4.278888889
A142: 2014-11-06 | B142: 36.41 | D142: 9 | F142: 4.045555556
A143: 2014-11-07 | B143: 37.86 | D143: 9 | F143: 4.206666667
A144: 2014-11-10 | B144: 12.74 | D144: 3 | F144: 4.246666667
A145: 2014-11-11 | B145: 25.98 | D145: 6 | F145: 4.33
A146: 2014-11-12 | B146: 29.48 | D146: 7 | F146: 4.211428571
A147: 2014-11-13 | B147: 22.33 | D147: 6 | F147: 3.721666667
A148: 2014-11-14 | B148: 23.34 | D148: 6 | F148: 3.89
A149: 2014-11-17 | B149: 24.81 | D149: 6 | F149: 4.135
A150: 2014-11-18 | B150: 32.56 | D150: 8 | F150: 4.07
A151: 2014-11-19 | B151: 37.37 | D151: 10 | F151: 3.737
A152: 2014-11-20 | B152: 36.65 | D152: 8 | F152: 4.58125
A153: 2014-11-21 | B153: 39.53 | D153: 9 | F153: 4.392222222
A154: 2014-11-24 | B154: 13.03 | D154: 3 | F154: 4.343333333
A155: 2014-11-25 | B155: 28.63 | D155: 6 | F155: 4.771666667
A156: 2014-11-26 | B156: 35.35 | D156: 8 | F156: 4.41875
A157: 2014-11-28 | B157: 14.97 | D157: 3 | F157: 4.99
A158: 2014-11-29 | B158: 16 | D158: 3 | F158: 5.333333333 | G158: =SUM(B139:B158) -> 568.95
A159: 2014-12-01 | B159: 38.49 | D159: 8 | F159: 4.81125
A160: 2014-12-02 | B160: 25.64 | D160: 6 | F160: 4.273333333
A161: 2014-12-03 | B161: 41.39 | D161: 9 | F161: 4.598888889
A162: 2014-12-04 | B162: 42.68 | D162: 10 | F162: 4.268
A163: 2014-12-05 | B163: 38.31 | D163: 8 | F163: 4.78875
A164: 2014-12-08 | B164: 17 | D164: 4 | F164: 4.25
A165: 2014-12-09 | B165: 29.81 | D165: 6 | F165: 4.968333333
A166: 2014-12-10 | B166: 31.82 | D166: 8 | F166: 3.9775
A167: 2014-12-11 | B167: 26.23 | D167: 5 | F167: 5.246
A168: 2014-12-12 | B168: 22.16 | D168: 4 | F168: 5.54
A169: 2014-12-15 | B169: 25.1 | D169: 6 | F169: 4.183333333
A170: 2014-12-16 | B170: 31.51 | D170: 7 | F170: 4.501428571
A171: 2014-12-17 | B171: 40.37 | D171: 9 | F171: 4.485555556
A172: 2014-12-18 | B172: 40.23 | D172: 10 | F172: 4.023
A173: 2014-12-19 | B173: 39.86 | D173: 9 | F173: 4.428888889
A174: 2014-12-22 | B174: 12.74 | D174: 3 | F174: 4.246666667
A175: 2014-12-23 | B175: 26.39 | D175: 6 | F175: 4.398333333
A176: 2014-12-24 | B176: 33.15 | D176: 7 | F176: 4.735714286
A177: 2014-12-26 | B177: 19.59 | D177: 5 | F177: 3.918
A178: 2014-12-27 | B178: 20 | D178: 4 | F178: 5
A179: 2014-12-29 | B179: 27.13 | D179: 6 | F179: 4.521666667
A180: 2014-12-30 | B180: 36.05 | D180: 8 | F180: 4.50625
A181: 2014-12-31 | B181: 39.21 | D181: 9 | F181: 4.356666667 | G181: =SUM(B159:B181) -> 704.86
A182: 2015-01-02 | B182: 86.34 | D182: 17 | F182: 5.078823529
A183: 2015-01-03 | B183: 17.5 | D183: 4 | F183: 4.375
A184: 2015-01-05 | B184: 10.23 | D184: 2 | F184: 5.115
A185: 2015-01-06 | B185: 29.57 | D185: 5 | F185: 5.914
A186: 2015-01-07 | B186: 37.04 | D186: 10 | F186: 3.704
A187: 2015-01-08 | B187: 28.66 | D187: 8 | F187: 3.5825
A188: 2015-01-09 | B188: 21.96 | D188: 5 | F188: 4.392
A189: 2015-01-12 | B189: 38.67 | D189: 8 | F189: 4.83375
A190: 2015-01-13 | B190: 33.29 | D190: 8 | F190: 4.16125
A191: 2015-01-14 | B191: 39.62 | D191: 8 | F191: 4.9525
A192: 2015-01-15 | B192: 43.02 | D192: 10 | F192: 4.302
A193: 2015-01-16 | B193: 41.12 | D193: 8 | F193: 5.14
A194: 2015-01-19 | B194: 13.41 | D194: 3 | F194: 4.47
A195: 2015-01-20 | B195: 29.26 | D195: 6 | F195: 4.876666667
A196: 2015-01-21 | B196: 32.09 | D196: 7 | F196: 4.584285714
A197: 2015-01-22 | B197: 23.83 | D197: 6 | F197: 3.971666667
A198: 2015-01-23 | B198: 21.73 | D198: 4 | F198: 5.4325
A199: 2015-01-26 | B199: 31.42 | D199: 7 | F199: 4.488571429
A200: 2015-01-27 | B200: 33.32 | D200: 8 | F200: =+B200/D200 -> 4.165
A201: 2015-01-28 | B201: 41.8 | D201: 10 | F201: 4.18
... 66 more rows
